bitfinex/quotes_ETHUSD_20240828
["timestamp","ask_amount","ask_price","bid_price","bid_amount"]
[1724805846964,2.2598,2444.9,2443.8,0.39435108]
[1724805846965,4.0916,2444.1,2443.8,0.39435108]
[1724805847267,4.09089,2444.5,2443.8,0.0818317]
[1724805847431,4.09119,2444.3,2443.8,5.61680953]
[1724805847633,4.091,2444.4,2443.9,0.64784903]
[1724805847937,3.408967,2445.1,2443.9,0.64784903]
[1724805847938,2.2723,2445.2,2444.1,7.83927783]
[1724805848172,4.08974,2445.2,2444.4,5.53497783]
[1724805848458,4.08974,2445.2,2444.5,2.38609681]
[1724805848635,4.08974,2445.2,2444.6,0.79210746]
[1724805848636,4.08998,2445.0,2444.6,0.79210746]
[1724805848838,4.08974,2445.2,2444.6,0.79210746]
[1724805848839,4.09042,2444.8,2444.6,0.79210746]
[1724805849034,4.09048,2444.7,2444.1,7.83927783]
[1724805849233,4.08932,2445.4,2444.1,7.83927783]
[1724805849234,4.0909,2444.5,2444.1,7.83927783]
[1724805849454,4.09026,2444.9,2444.2,3.08181487]
[1724805849680,4.09026,2444.9,2444.4,5.53497783]
[1724805849963,4.08992,2445.1,2444.5,0.08180605]
[1724805850665,4.09,2445.0,2444.5,0.08180605]
[1724805850867,4.09,2445.0,2444.5,0.64348444]
[1724805851376,4.09105,2444.4,2443.7,0.86168078]
[1724805851664,4.09105,2444.4,2443.8,0.08182599]
[1724805851869,2.3967,2444.9,2443.8,0.08182599]
[1724805852084,2.3967,2445.2,2444.4,2.3209]
[1724805852230,4.09,2445.0,2444.6,5.53497783]
[1724805852429,4.08979,2445.2,2444.7,0.08179778]
[1724805852661,4.08979,2445.2,2444.7,0.63529556]
[1724805852835,0.01807159,2445.3,2444.9,5.53497783]
[1724805853045,0.01807159,2445.3,2444.7,3.55349778]
[1724805853046,4.08974,2445.2,2444.7,3.55349778]
[1724805853241,4.08987,2445.1,2444.7,3.0]
[1724805853428,4.08987,2445.1,2444.6,2.3209]
[1724805853429,4.08987,2445.1,2444.6,5.3209]
[1724805853835,0.01807159,2445.3,2444.3,3.17565572]
[1724805853836,2.41477159,2445.3,2444.3,3.17565572]
[1724805854058,2.41477159,2445.3,2444.3,2.3209]
[1724805854264,4.09066,2444.6,2444.3,2.3209]
[1724805854468,4.09053,2444.7,2444.3,2.3209]
[1724805855471,7.32672335,2444.9,2444.3,2.3209]
[1724805855634,3.23643335,2444.9,2444.4,0.08181126]
[1724805855829,4.09035,2444.8,2444.4,0.62208239]
[1724805856036,4.09035,2444.8,2444.4,3.62208239]
[1724805856435,4.08991,2445.1,2444.4,9.15706022]
[1724805856640,4.08991,2445.1,2444.5,1.14779602]
[1724805856980,4.09033,2444.8,2444.4,3.54027113]
[1724805857138,4.09007,2445.0,2444.4,3.08181006]
[1724805857535,4.08999,2445.0,2444.4,3.08181006]
[1724805857877,4.08999,2445.0,2444.5,1.27717192]
[1724805858234,8.1801,2445.0,2444.5,1.35897245]
[1724805858963,4.08999,2445.0,2444.5,1.35897245]
[1724805859469,8.1801,2445.0,2444.5,1.35897245]
[1724805859669,4.09015,2444.9,2444.5,1.35897245]
[1724805859867,4.08999,2445.0,2444.6,0.43589724]
[1724805860183,4.08973,2445.2,2444.7,0.08180055]
[1724805860392,8.17952,2445.2,2444.7,0.08180055]
[1724805860569,4.08982,2445.1,2444.7,0.08180055]
[1724805861067,8.17948,2445.2,2444.7,0.08180055]
[1724805861278,4.08981,2445.1,2444.7,0.08180055]
[1724805861848,0.01807159,2445.3,2444.8,8.01187783]
[1724805862044,0.01807159,2445.3,2445.1,5.53497783]
[1724805862298,0.01807159,2445.3,2445.2,0.08178079]
[1724805862462,0.01807159,2445.3,2445.2,2.55868079]
[1724805862846,0.01807159,2445.3,2445.2,5.55868079]
[1724805863792,0.01807159,2445.3,2444.9,0.80936784]
[1724805863793,0.01807159,2445.3,2445.0,2.4769]
[1724805863947,0.01807159,2445.3,2445.0,3.35902457]
[1724805864293,0.01807159,2445.3,2445.1,3.0]
[1724805865549,4.08964,2445.2,2444.8,3.0]
[1724805865754,4.08995,2445.1,2444.9,3.0]
[1724805865950,4.08995,2445.1,2444.7,2.8859]
[1724805866167,4.09017,2444.9,2444.7,0.409]
[1724805866373,0.01807159,2445.3,2444.6,0.409]
[1724805866720,0.01807159,2445.3,2444.2,5.53497783]
[1724805866721,4.09048,2444.7,2444.2,5.53497783]
[1724805866870,4.09068,2444.6,2444.2,5.53497783]
[1724805868000,8.18055,2444.9,2444.2,5.53497783]
[1724805868302,4.09022,2444.9,2444.3,0.84208778]
[1724805868516,0.01807159,2445.3,2444.8,5.53497783]
[1724805868668,0.01807159,2445.3,2444.9,5.55868916]
[1724805868669,4.10756159,2445.3,2444.9,5.55868916]
[1724805868868,4.08973,2445.2,2444.9,6.66805586]
[1724805869112,4.10756159,2445.3,2444.9,6.66805586]
[1724805869594,0.01807159,2445.3,2444.9,6.66805586]
[1724805869766,0.01807159,2445.3,2445.0,1.22030337]
[1724805870172,0.01807159,2445.3,2445.1,5.61676693]
[1724805870416,0.01807159,2445.3,2445.2,3.0]
[1724805870619,0.01807159,2445.3,2445.2,3.0817788]
[1724805871869,0.01807159,2445.3,2445.2,3.0]
[1724805872066,4.09073,2444.6,2444.3,0.85475572]
[1724805872300,6.55450159,2445.3,2444.3,0.08181321]
[1724805872301,4.09043,2444.8,2444.3,0.08181321]
[1724805872668,4.09009,2445.0,2444.3,5.61679104]
[1724805872880,4.08992,2445.1,2444.5,2.4769]
[1724805873103,2.46497159,2445.3,2444.6,5.61677609]
[1724805873104,4.0898,2445.2,2444.6,5.61677609]
[1724805873268,4.08975,2445.2,2444.6,5.61677609]
[1724805873467,4.08974,2445.2,2444.7,3.80936761]
[1724805873730,8.19723159,2445.3,2444.8,0.08179323]
[1724805873934,4.10764159,2445.3,2444.8,1.0244071]
[1724805874117,8.19721159,2445.3,2444.8,1.0244071]
[1724805874317,8.19725159,2445.3,2444.8,1.0244071]
[1724805874624,4.08968,2445.2,2444.8,1.0244071]
[1724805874793,4.08968,2445.2,2444.9,0.48337747]
[1724805874989,0.01807159,2445.3,2445.0,2.46029324]
[1724805875236,0.01807159,2445.3,2445.2,5.53497783]
[1724805875545,0.01807159,2445.3,2445.2,5.61675699]
[1724805875836,0.01807159,2445.3,2445.2,6.71628269]
[1724805876189,0.01807159,2445.3,2445.2,9.71628269]
[1724805878708,0.01807159,2445.3,2445.2,12.08838269]
[1724805883550,0.01807159,2445.3,2445.2,8.53497783]
[1724805883843,4.08977,2445.2,2444.6,0.409]
[1724805884030,4.0899,2445.1,2444.3,2.3355]
[1724805884238,4.0899,2445.1,2444.4,1.52394869]
[1724805884239,8.17984,2445.1,2444.4,1.52394869]
[1724805884436,8.1798,2445.1,2444.4,1.52394869]
[1724805884608,4.0899,2445.1,2444.4,1.52394869]
[1724805884809,2.35367159,2445.3,2444.5,5.61677731]
[1724805884810,6.44330159,2445.3,2444.5,5.61677731]
[1724805885111,4.08974,2445.2,2444.5,5.9209227]
[1724805885350,4.08974,2445.2,2444.6,3.0]
[1724805885919,4.08974,2445.2,2444.7,0.0817921]
[1724805886155,4.10770159,2445.3,2444.7,0.98206358]
[1724805886450,4.10770159,2445.3,2444.8,0.08179079]
[1724805886622,4.10770159,2445.3,2444.8,3.08179079]
[1724805886826,4.10770159,2445.3,2444.9,0.63175623]
[1724805887019,0.01807159,2445.3,2445.0,0.0817908]
[1724805887445,0.01807159,2445.3,2444.9,0.63175623]
[1724805887641,4.10755159,2445.3,2444.9,0.63175623]
[1724805887946,4.10755159,2445.3,2444.8,3.0]
[1724805887947,4.08989,2445.1,2444.8,3.0]
[1724805888121,4.08989,2445.1,2444.6,3.409]
[1724805888917,8.19728159,2445.3,2444.6,3.409]
[1724805889152,4.08913,2445.6,2445.2,5.53497783]
[1724805889317,4.0884,2446.0,2445.5,5.53497783]
[1724805889519,2.4736,2446.2,2445.4,0.08177074]
[1724805889768,2.4736,2446.2,2445.3,3.55349778]
[1724805889769,4.08918,2445.5,2445.3,3.08177083]
[1724805889918,4.08931,2445.4,2444.8,7.36900909]
[1724805890256,4.08907,2445.6,2444.9,3.08178525]
[1724805890548,4.08838,2446.0,2445.1,5.53497783]
[1724805890757,4.08838,2446.0,2445.4,5.53497783]
[1724805890914,4.08838,2446.0,2445.5,0.63526851]
[1724805891117,6.42797,2446.6,2445.7,5.53497783]
[1724805891417,6.42797,2446.6,2445.8,3.0817603]
[1724805891613,4.08764,2446.4,2445.9,0.86167381]
[1724805891818,4.0878,2446.3,2445.8,3.08175609]
[1724805892044,4.0882,2446.1,2445.8,3.08175609]
[1724805892218,4.0878,2446.3,2445.8,3.08175609]
[1724805892633,4.08755,2446.5,2445.8,3.0]
[1724805893313,4.08756,2446.5,2445.8,3.0]
[1724805893529,2.3406,2446.6,2445.9,0.93525378]
[1724805893718,4.08727,2446.7,2446.0,2.3013]
[1724805893939,4.08727,2446.7,2446.1,0.08175098]
[1724805894352,4.08734,2446.6,2446.1,0.08175098]
[1724805894556,4.08734,2446.6,2446.0,10.83627783]
[1724805894853,4.08734,2446.6,2446.1,0.08174988]
[1724805895056,4.08727,2446.7,2446.1,0.08174988]
[1724805895258,4.08701,2446.8,2446.1,0.08174988]
[1724805895647,4.08715,2446.7,2446.1,0.08174988]
[1724805895846,4.08715,2446.7,2446.1,1.29045041]
[1724805896048,4.08715,2446.7,2446.1,4.29045041]
[1724805898359,8.17508,2446.5,2446.1,3.0]
[1724805898564,4.08748,2446.5,2446.0,5.3013]
[1724805898742,4.08748,2446.5,2446.1,1.34878494]
[1724805898945,4.08748,2446.5,2446.1,4.34878494]
[1724805900228,8.17382,2446.9,2446.1,4.34878494]
[1724805900746,2.3112,2447.0,2446.1,4.34878494]
[1724805901058,4.08768,2446.4,2446.1,3.0]
[1724805901234,4.08768,2446.4,2446.0,5.3013]
[1724805901762,4.08741,2446.6,2446.1,0.08175371]
[1724805902061,4.08741,2446.6,2446.1,1.34878462]
[1724805902268,4.08741,2446.6,2446.1,4.34878462]
[1724805902422,4.08755,2446.5,2446.1,4.34878462]
[1724805902622,4.0873,2446.7,2446.1,3.08175371]
[1724805902861,4.08741,2446.6,2446.1,0.08175371]
[1724805903062,8.17459,2446.7,2446.1,0.08175371]
[1724805903236,4.08731,2446.6,2446.1,0.08175371]
[1724805904467,4.08697,2446.8,2446.1,1.35695999]
[1724805904629,4.08697,2446.8,2446.1,4.35695999]
[1724805905039,4.08683,2446.9,2446.1,4.35695999]
[1724805905269,4.08683,2446.9,2446.2,1.21932378]
[1724805905472,4.08683,2446.9,2446.3,0.08174434]
[1724805905631,4.08643,2447.2,2446.3,5.61672217]
[1724805905836,0.408643,2447.1,2446.4,2.3013]
[1724805906057,4.08643,2447.2,2446.5,0.08173588]
[1724805906262,4.08654,2447.1,2446.5,0.08173588]
[1724805906432,4.08664,2447.0,2446.5,0.08173588]
[1724805906634,4.08664,2447.0,2446.5,1.72155068]
[1724805907265,4.08643,2447.2,2446.5,1.72155068]
[1724805907777,4.08666,2447.0,2446.5,1.72155068]
[1724805908276,4.08683,2446.9,2446.4,2.3013]
[1724805908435,4.08732,2446.6,2446.3,7.36900909]
[1724805908767,8.17416,2446.8,2446.3,0.08174529]
[1724805908954,8.17416,2446.8,2446.3,0.55441453]
[1724805909272,4.08704,2446.8,2446.3,0.55441453]
[1724805909448,4.08704,2446.8,2446.4,0.08174433]
[1724805909770,4.08715,2446.7,2446.3,0.55441453]
[1724805909993,4.08738,2446.6,2446.2,5.4624]
[1724805910138,4.08738,2446.6,2446.2,2.4624]
[1724805910578,2.291,2446.8,2446.0,12.90398692]
[1724805910860,8.17488,2446.6,2446.1,0.08175092]
[1724805911071,4.08731,2446.6,2446.1,0.08175092]
[1724805911449,4.08699,2446.8,2446.1,2.4396]
[1724805911771,4.08715,2446.7,2446.1,2.4396]
[1724805911950,4.08715,2446.7,2446.2,1.53435869]
[1724805912149,4.08715,2446.7,2446.2,4.53435869]
[1724805912353,4.0874,2446.6,2446.2,4.53435869]
[1724805912545,4.0874,2446.6,2446.1,2.4396]
[1724805912744,8.17487,2446.6,2446.1,2.4396]
[1724805912949,4.08757,2446.5,2446.1,5.4396]
[1724805913172,4.08778,2446.4,2446.1,5.4396]
[1724805913386,4.08781,2446.3,2446.1,3.0]
[1724805913872,4.08757,2446.5,2446.1,3.0]
[1724805914072,4.08757,2446.5,2446.1,3.61125508]
[1724805915177,4.08732,2446.6,2446.1,3.61125508]
[1724805915475,4.08714,2446.7,2446.1,3.61125508]
[1724805915642,4.08699,2446.8,2446.2,4.0599242]
[1724805915837,4.0868,2446.9,2446.3,5.61672472]
[1724805916052,4.08666,2447.0,2446.4,0.96766489]
[1724805916252,4.08736,2446.6,2446.4,0.96766489]
[1724805916459,4.08773,2446.4,2446.1,3.0]
[1724805916983,4.08785,2446.3,2446.1,3.0]
[1724805917361,4.08773,2446.4,2446.1,3.0]
[1724805917985,4.08749,2446.5,2446.1,3.0]
[1724805918636,4.08749,2446.5,2446.1,3.08175412]
[1724805918838,4.08683,2446.9,2446.1,3.08175412]
[1724805918839,4.08713,2446.8,2446.1,3.08175412]
[1724805919291,4.08665,2447.0,2446.3,5.53497783]
[1724805919578,4.08683,2446.9,2446.4,0.63523752]
[1724805920089,9.86359447,2448.0,2446.5,2.4161]
[1724805920090,8.17279,2447.2,2446.5,2.4161]
[1724805920276,4.08648,2447.1,2446.6,0.38686679]
[1724805920683,4.0861,2447.4,2446.6,5.92184462]
[1724805920850,4.0861,2447.4,2446.7,2.2836]
[1724805921049,4.0861,2447.4,2446.8,0.90226939]
[1724805921050,8.1722,2447.4,2446.8,0.90226939]
[1724805921463,4.08609,2447.4,2446.8,0.90226939]
[1724805921656,4.08581,2447.5,2446.8,0.90226939]
[1724805921855,4.08581,2447.5,2446.9,2.3448]
[1724805922151,4.08581,2447.5,2447.0,0.40642427]
[1724805922350,8.17115,2447.7,2447.0,0.40642427]
[1724805922564,8.17115,2447.7,2447.1,2.3448]
[1724805922737,4.08572,2447.6,2447.2,0.08171548]
[1724805922943,4.08471,2448.2,2447.5,5.53497783]
[1724805923179,4.08406,2448.6,2447.8,7.87977783]
[1724805923388,4.08406,2448.6,2448.1,5.53497783]
[1724805923554,8.16815,2448.6,2448.1,5.53497783]
[1724805923754,4.08474,2448.2,2447.9,0.78797778]
[1724805923965,9.61773783,2449.4,2447.8,0.08169901]
[1724805923966,4.08438,2448.4,2447.8,0.08169901]
[1724805924161,4.08419,2448.5,2448.0,0.08169901]
[1724805924463,6.41819,2448.9,2448.0,0.08169901]
[1724805924464,4.08373,2448.8,2448.1,5.53497783]
[1724805924783,2.3347,2448.9,2448.1,5.53497783]
[1724805924948,0.641804,2448.8,2447.8,7.87977783]
[1724805925295,4.08456,2448.3,2447.8,7.87977783]
[1724805925463,4.0848,2448.1,2447.8,7.87977783]
[1724805925646,8.16975,2448.1,2447.8,7.87977783]
[1724805925853,4.0848,2448.1,2447.8,7.87977783]
[1724805926053,4.0848,2448.1,2447.8,8.66775561]
[1724805926283,0.641804,2448.8,2447.5,8.53497783]
[1724805926284,4.08435,2448.4,2447.5,8.53497783]
[1724805926508,4.08488,2448.1,2447.5,8.53497783]
[1724805926681,4.08435,2448.4,2447.2,0.27512224]
[1724805926682,4.08564,2447.6,2447.2,5.81010007]
[1724805926882,4.08539,2447.8,2447.2,5.53497783]
[1724805927101,4.08505,2448.0,2447.3,0.08171109]
[1724805927301,4.08539,2447.8,2447.3,0.79229889]
[1724805927669,4.08564,2447.6,2447.3,0.87401191]
[1724805928010,4.08564,2447.6,2447.3,0.79229889]
[1724805928172,4.08505,2448.0,2447.4,0.63272767]
[1724805928372,4.08505,2448.0,2447.5,0.08170458]
[1724805928699,4.08547,2447.7,2447.4,0.63272767]
[1724805928904,4.08573,2447.6,2447.1,2.3063]
[1724805929206,8.17149,2447.6,2447.1,2.3063]
[1724805929408,4.08573,2447.6,2447.2,0.5388019]
[1724805929730,4.08597,2447.4,2447.2,0.5388019]
[1724805930174,4.08597,2447.4,2447.1,2.3063]
[1724805930175,4.0862,2447.3,2446.9,12.90398692]
[1724805930377,2.3103,2447.6,2446.6,14.7947]
[1724805930378,4.08656,2447.1,2446.6,2.3747]
[1724805931317,4.08607,2447.4,2446.7,0.08173279]
[1724805931527,4.08568,2447.6,2446.7,0.31920279]
[1724805931809,2.3103,2448.0,2447.0,2.3747]
[1724805931810,4.08549,2447.7,2447.0,2.3747]
[1724805932112,0.05664913,2447.6,2447.1,0.8726822]
[1724805932489,4.14230913,2447.6,2447.1,0.8726822]
[1724805932815,0.05664913,2447.6,2447.1,0.8726822]
[1724805933013,0.05664913,2447.6,2447.3,2.3747]
[1724805933216,0.0566238,2447.5,2447.4,0.87267234]
[1724805933425,4.08555,2447.7,2447.4,0.79096778]
[1724805933735,4.08555,2447.7,2447.3,2.3747]
[1724805933736,4.1423438,2447.6,2447.3,2.3747]
[1724805934014,4.0858,2447.5,2447.2,3.0]
[1724805934317,4.0858,2447.5,2447.1,3.0]
[1724805934619,0.0566238,2447.4,2447.2,0.08171586]
[1724805934811,4.08534,2447.8,2447.2,3.87397523]
[1724805935013,0.0566238,2447.7,2447.2,3.87397523]
[1724805935321,4.08514,2447.9,2447.3,0.08171547]
[1724805935516,0.0566238,2447.6,2447.3,0.94906685]
[1724805935725,4.08531,2447.8,2447.4,0.08170957]
[1724805935908,0.0566238,2447.5,2447.4,0.08170957]
[1724805936107,4.08507,2448.0,2447.4,0.56401315]
[1724805936311,0.0566238,2447.5,2447.4,0.56401315]
[1724805936916,4.08506,2448.0,2447.5,2.3232]
[1724805937118,4.08467,2448.2,2447.6,0.08170302]
[1724805937423,4.08467,2448.2,2447.6,0.37859464]
[1724805937424,8.16945,2448.2,2447.6,0.37859464]
[1724805938119,8.16946,2448.2,2447.6,0.37859464]
[1724805938288,4.0844,2448.4,2447.7,5.61668033]
[1724805938488,4.0844,2448.4,2447.8,0.67304948]
[1724805938716,4.0844,2448.4,2447.9,2.4172]
[1724805939327,8.16941,2448.2,2447.9,2.4172]
[1724805939504,4.08465,2448.2,2447.6,2.78379162]
[1724805939712,4.08465,2448.2,2447.7,3.57837916]
[1724805939882,4.08496,2448.0,2447.7,3.57837916]
[1724805940424,4.08475,2448.2,2447.7,3.57837916]
[1724805940628,4.08489,2448.1,2447.8,0.63621708]
[1724805940922,4.08497,2448.0,2447.8,0.63621708]
[1724805941089,4.08497,2448.0,2447.6,2.78379162]
[1724805941417,4.08549,2447.7,2447.3,9.85590909]
[1724805941623,4.08549,2447.7,2447.3,2.4869]
[1724805941828,4.0854,2447.8,2447.1,5.53497783]
[1724805941829,4.08575,2447.6,2447.1,5.53497783]
[1724805942124,4.08514,2447.9,2446.9,0.85475572]
[1724805942308,4.0858,2447.5,2447.0,1.01587671]
[1724805942508,4.08575,2447.6,2447.0,1.09759694]
[1724805943221,4.08575,2447.6,2447.1,0.08172015]
[1724805944094,4.08547,2447.7,2447.1,0.08172015]
[1724805944296,2.4044,2448.2,2447.2,2.4869]
[1724805944515,4.08514,2447.9,2447.3,0.08170925]
[1724805944696,4.08497,2448.0,2447.4,5.53497783]
[1724805945025,8.16979,2448.1,2447.5,0.08170685]
[1724805945207,4.08514,2447.9,2447.5,0.56166847]
[1724805945420,4.08489,2448.1,2447.5,0.56166847]
[1724805945594,4.08489,2448.1,2447.3,3.0]
[1724805945595,4.08498,2448.0,2447.3,3.0]
[1724805945924,4.08532,2447.8,2447.2,5.4869]
[1724805946131,4.08521,2447.9,2447.4,0.08170182]
[1724805946431,4.08497,2448.0,2447.4,0.08170182]
[1724805946727,4.08472,2448.2,2447.4,0.67117656]
[1724805946883,4.08453,2448.3,2447.4,0.67117656]
[1724805946884,4.0848,2448.1,2447.4,0.67117656]
[1724805947086,4.0848,2448.1,2447.5,0.48143403]
[1724805947329,4.08464,2448.2,2447.5,0.48143403]
[1724805947832,0.057586,2448.1,2447.5,0.48143403]
[1724805948133,4.08498,2448.0,2447.5,0.48143403]
[1724805948330,0.057586,2448.1,2447.6,3.02914119]
[1724805948499,0.05777585,2447.9,2447.7,0.08169689]
[1724805948705,4.08464,2448.2,2447.7,0.08169689]
[1724805948899,0.05788974,2447.8,2447.6,3.02914119]
[1724805949129,8.16943,2448.2,2447.7,0.35105752]
[1724805949430,0.05788974,2448.1,2447.8,0.0816969]
[1724805950138,4.08414,2448.5,2447.9,2.4022]
[1724805950303,4.08434,2448.4,2448.0,0.33008052]
[1724805950499,4.08447,2448.3,2448.0,0.33008052]
[1724805951816,4.0843,2448.4,2448.0,0.33008052]
[1724805953398,6.52703,2449.1,2447.7,16.25504444]
[1724805953399,4.0848,2448.1,2447.7,10.72006661]
[1724805953588,4.08471,2448.2,2447.7,10.72006661]
[1724805953791,4.08471,2448.2,2447.8,1.44280568]
[1724805954012,4.08441,2448.4,2447.8,1.44280568]
[1724805954333,4.08454,2448.3,2447.8,1.44280568]
[1724805955016,4.08441,2448.4,2447.8,1.44280568]
[1724805955218,8.16883,2448.4,2447.8,1.44280568]
[1724805955417,4.08456,2448.3,2447.9,1.21628723]
[1724805955610,4.08456,2448.3,2447.8,0.08169494]
[1724805956399,8.16913,2448.3,2447.8,0.08169494]
[1724805956603,8.16913,2448.3,2447.7,10.72006661]
[1724805957042,4.0849,2448.1,2447.7,7.72006661]
[1724805957354,4.08514,2447.9,2447.7,7.36900909]
[1724805957506,4.0849,2448.1,2447.3,7.36900909]
[1724805957507,4.08498,2448.0,2447.3,7.36900909]
[1724805957705,4.08498,2448.0,2447.4,0.97566091]
[1724805958043,4.08498,2448.0,2447.4,5.13528181]
[1724805958651,4.0853,2447.8,2447.4,5.13528181]
[1724805958841,4.08498,2448.0,2447.4,5.2169906]
[1724805959003,4.08498,2448.0,2447.5,1.25859997]
[1724805959401,4.08514,2447.9,2447.5,1.25859997]
[1724805960040,4.08497,2448.0,2447.5,1.25859997]
[1724805960206,4.08463,2448.2,2447.7,4.1596209]
[1724805960544,4.08481,2448.1,2447.7,6.62891824]
[1724805960750,4.08481,2448.1,2447.7,4.1596209]
[1724805961052,4.08481,2448.1,2447.8,0.47129123]
[1724805961258,4.08439,2448.4,2447.8,0.552992]
[1724805961546,4.08439,2448.4,2447.9,2.3295]
[1724805961843,4.08447,2448.3,2447.9,2.3295]
[1724805962044,4.08447,2448.3,2448.0,0.2882492]
[1724805962246,8.16908,2448.3,2448.0,0.2882492]
[1724805962405,4.08447,2448.3,2448.0,0.2882492]
[1724805962601,0.05852245,2448.2,2448.0,0.2882492]
[1724805962833,4.08447,2448.3,2448.0,0.2882492]
[1724805963036,4.08425,2448.5,2448.0,0.36994519]
[1724805963037,0.05852245,2448.2,2448.0,0.36994519]
[1724805963241,4.08425,2448.5,2448.0,4.52956609]
[1724805963242,4.08422,2448.5,2448.0,4.52956609]
[1724805963425,4.08422,2448.5,2448.1,0.68590661]
[1724805963426,0.05852245,2448.4,2448.1,0.68590661]
[1724805963807,4.14288245,2448.4,2448.1,0.68590661]
[1724805964011,4.14288245,2448.4,2448.0,0.36993994]
[1724805964211,0.05852245,2448.4,2448.0,4.52956084]
[1724805964521,4.08376,2448.8,2448.0,4.52956084]
[1724805964728,4.08376,2448.8,2448.3,4.1596209]
[1724805965112,4.08376,2448.8,2448.4,0.08167815]
[1724805965456,4.08343,2449.0,2448.4,0.08167815]
[1724805965609,8.16681,2449.0,2448.4,0.08167815]
[1724805965807,4.08338,2449.0,2448.6,4.1596209]
[1724805966056,8.16677,2449.0,2448.6,4.24129097]
[1724805966525,4.08338,2449.0,2448.6,4.24129097]
[1724805966711,4.08338,2449.0,2448.7,0.6658391]
[1724805967114,2.4711,2449.6,2448.7,0.6658391]
[1724805967115,4.0836,2448.9,2448.7,0.6658391]
[1724805967343,4.08363,2448.8,2448.6,4.24129097]
[1724805967514,8.16722,2448.9,2448.6,4.1596209]
[1724805967714,4.08336,2449.0,2448.6,4.90713024]
[1724805967930,4.08356,2448.9,2448.6,4.90713024]
[1724805969049,2.4711,2449.6,2448.6,4.90713024]
[1724805969050,4.08299,2449.2,2448.6,4.90713024]
[1724805969255,4.08278,2449.4,2448.8,2.4171]
[1724805969420,4.08298,2449.2,2448.8,2.4171]
[1724805969759,4.08343,2449.0,2448.7,0.73242302]
[1724805969958,4.08379,2448.7,2448.6,7.36900909]
[1724805970172,4.08379,2448.7,2448.4,15.42]
[1724805970173,8.1682,2448.6,2448.2,2.4171]
[1724805970451,4.08407,2448.6,2448.3,0.28700561]
[1724805970610,8.16812,2448.6,2448.3,0.28700561]
[1724805970816,4.08405,2448.6,2448.3,0.28700561]
[1724805971362,8.16892,2448.3,2448.2,2.4171]
[1724805971659,4.08471,2448.2,2447.8,12.829]
[1724805971842,4.08471,2448.2,2447.9,2.677473]
[1724805972225,4.08446,2448.3,2447.9,6.91878659]
[1724805972534,0.058902,2448.2,2447.9,6.91878659]
[1724805972941,4.08446,2448.3,2447.9,6.91878659]
[1724805973141,4.08496,2448.0,2447.8,0.409]
[1724805973318,4.08513,2447.9,2447.7,9.78610909]
[1724805973519,4.14389284,2447.9,2447.7,11.18068209]
[1724805973822,0.05876284,2447.9,2447.7,11.18068209]
[1724805974031,4.0848,2448.1,2447.7,11.18068209]
[1724805974257,0.05837063,2448.0,2447.7,11.18068209]
[1724805974465,0.05837063,2448.0,2447.9,4.1596209]
[1724805974637,4.08425,2448.5,2447.9,4.1596209]
[1724805974965,6.55221,2448.8,2447.9,4.1596209]
[1724805974966,8.16911,2448.3,2447.9,4.1596209]
[1724805975225,4.08455,2448.3,2447.9,4.1596209]
[1724805975371,4.08455,2448.3,2448.0,0.57753519]
[1724805975560,0.05837063,2448.2,2448.0,0.57753519]
[1724805975737,4.14301063,2448.2,2448.0,0.57753519]
[1724805975933,4.08455,2448.3,2448.0,0.57753519]
[1724805976147,4.08455,2448.3,2448.1,0.47371561]
[1724805976148,8.16915,2448.3,2448.1,0.47371561]
[1724805976469,4.08455,2448.3,2447.9,4.1596209]
[1724805976871,4.08454,2448.3,2447.9,4.1596209]
[1724805977669,0.05837063,2448.2,2447.9,4.1596209]
[1724805977866,4.0843,2448.4,2448.0,0.42413216]
[1724805978037,0.05837063,2448.3,2448.0,0.42413216]
[1724805978361,4.14285063,2448.3,2448.0,0.42413216]
[1724805978561,0.05837063,2448.3,2448.0,0.42413216]
[1724805978756,0.05837063,2448.3,2448.1,0.45837531]
[1724805978975,0.05837063,2448.3,2448.2,2.3051]
[1724805979184,4.08396,2448.6,2448.2,2.3051]
[1724805979492,4.08396,2448.6,2448.3,0.08168109]
[1724805980082,4.08396,2448.6,2448.2,2.3051]
[1724805980256,8.16808,2448.6,2448.2,3.31834844]
[1724805980458,4.08415,2448.5,2448.2,3.31834844]
[1724805981490,4.08431,2448.4,2448.2,3.31834844]
[1724805981817,4.08431,2448.4,2448.2,1.01324844]
[1724805981959,4.08446,2448.3,2448.2,1.01324844]
[1724805982497,4.0841,2448.6,2448.2,1.01324844]
[1724805982705,4.08415,2448.5,2448.2,1.01324844]
[1724805982997,4.08406,2448.6,2448.2,1.01324844]
[1724805983399,4.08376,2448.8,2448.2,5.17286934]
[1724805983556,4.0834,2449.0,2448.5,4.1596209]
[1724805983758,4.0834,2449.0,2448.6,0.08167035]
[1724805984405,2.3663,2449.7,2448.8,4.1596209]
[1724805984608,4.08228,2449.7,2449.1,4.1596209]
[1724805984907,4.08163,2450.0,2449.5,4.1596209]
[1724805985220,6.44444,2450.5,2449.3,2.472]
[1724805985221,4.08089,2450.5,2449.9,2.472]
[1724805985387,0.42683407,2451.6,2449.9,2.472]
[1724805985388,4.08063,2450.7,2450.3,4.1596209]
[1724805985576,4.08025,2450.9,2450.4,0.08161037]
[1724805985781,4.08025,2450.9,2450.5,4.1596209]
[1724805986096,2.3636,2451.3,2449.9,5.881]
[1724805986097,4.08074,2450.6,2450.1,4.1596209]
[1724805986257,4.08074,2450.6,2450.2,0.08161439]
[1724805986498,4.08074,2450.6,2450.2,0.50573792]
[1724805986697,4.0809,2450.5,2450.1,4.1596209]
[1724805986869,8.16183,2450.5,2450.1,4.1596209]
[1724805987269,4.07999,2451.0,2450.2,0.081622]
[1724805987270,4.08072,2450.6,2450.2,0.081622]
[1724805987497,8.16151,2450.6,2450.2,0.081622]
[1724805987696,8.16151,2450.6,2450.1,4.1596209]
[1724805987902,4.08129,2450.3,2450.1,4.1596209]
[1724805988693,4.08129,2450.3,2449.2,4.1596209]
[1724805988694,4.08144,2450.2,2449.8,4.1596209]
[1724805988897,4.08114,2450.3,2449.8,4.1596209]
[1724805989255,8.16243,2450.3,2449.8,4.1596209]
[1724805989456,4.08071,2450.6,2450.1,4.1596209]
[1724805989700,4.08058,2450.7,2450.4,4.1596209]